[Event "Early-Titled-Tuesday-Blitz-June-18-2024"]
[Site "Chess.com"]
[Date "2024.06.18"]
[Round "9"]
[White "subham777"]
[Black "dealshark"]
[Result "1-0"]
[WhiteElo "2596"]
[BlackElo "2447"]
[TimeControl "180+1"]
[EndTime "9:43:33 PDT"]
[Termination "subham777 won by resignation"]

1. e4 {[%clk 0:03:00.9]} 1... c5 {[%clk 0:02:59.8]} 2. Nf3 {[%clk 0:02:57.4]}
2... d6 {[%clk 0:03:00.2]} 3. d4 {[%clk 0:02:56.7]} 3... cxd4 {[%clk 0:03:01.1]}
4. Qxd4 {[%clk 0:02:56.5]} 4... Nf6 {[%clk 0:03:00.5]} 5. e5 {[%clk 0:02:55.3]}
5... Nc6 {[%clk 0:02:51.8]} 6. Bb5 {[%clk 0:02:54.6]} 6... Qa5+ {[%clk
0:02:46.7]} 7. Nc3 {[%clk 0:02:53.9]} 7... dxe5 {[%clk 0:02:18.3]} 8. Nxe5
{[%clk 0:02:40.4]} 8... Qxb5 {[%clk 0:02:15.2]} 9. Nxb5 {[%clk 0:02:39.7]} 9...
Nxd4 {[%clk 0:02:15.3]} 10. Nxd4 {[%clk 0:02:40.6]} 10... e6 {[%clk 0:02:14.4]}
11. Be3 {[%clk 0:02:39.6]} 11... Be7 {[%clk 0:02:11]} 12. Nb5 {[%clk 0:02:35.9]}
12... O-O {[%clk 0:02:09.5]} 13. Nc7 {[%clk 0:02:33.7]} 13... Bd6 {[%clk
0:02:05.2]} 14. Nxa8 {[%clk 0:02:29.8]} 14... Bxe5 {[%clk 0:02:05.6]} 15. Bxa7
{[%clk 0:02:23.9]} 15... Bd7 {[%clk 0:01:56.5]} 16. Nb6 {[%clk 0:02:22.4]} 16...
Bxb2 {[%clk 0:01:56.6]} 17. Nxd7 {[%clk 0:02:14.9]} 17... Nxd7 {[%clk
0:01:43.2]} 18. Rb1 {[%clk 0:02:13.7]} 18... Bc3+ {[%clk 0:01:43.8]} 19. Ke2
{[%clk 0:02:12.1]} 19... Rc8 {[%clk 0:01:21.4]} 20. Rxb7 {[%clk 0:02:09.4]}
20... Ne5 {[%clk 0:01:21.1]} 21. Rb8 {[%clk 0:02:08.6]} 21... Rxb8 {[%clk
0:01:20.9]} 22. Bxb8 {[%clk 0:02:09.5]} 22... Nc6 {[%clk 0:01:20.3]} 23. Bg3
{[%clk 0:02:07.4]} 23... Kf8 {[%clk 0:01:17.1]} 24. Rb1 {[%clk 0:02:01.4]} 24...
Ke7 {[%clk 0:01:16.4]} 25. Rb6 {[%clk 0:01:58.7]} 25... Nd4+ {[%clk 0:01:14.4]}
26. Kd3 {[%clk 0:01:57.7]} 26... Ba1 {[%clk 0:01:08.6]} 27. Rb1 {[%clk
0:01:53.6]} 1-0

[Event "Early-Titled-Tuesday-Blitz-June-18-2024"]
[Site "Chess.com"]
[Date "2024.06.18"]
[Round "9"]
[White "betta2004"]
[Black "JunjiCol"]
[Result "1-0"]
[WhiteElo "2465"]
[BlackElo "2353"]
[TimeControl "180+1"]
[EndTime "9:43:33 PDT"]
[Termination "betta2004 won by resignation"]

1. Nf3 {[%clk 0:03:00.4]} 1... Nf6 {[%clk 0:02:58.1]} 2. b3 {[%clk 0:02:59.8]}
2... a5 {[%clk 0:02:55.1]} 3. e3 {[%clk 0:02:58.7]} 3... e6 {[%clk 0:02:53.8]}
4. Bb2 {[%clk 0:02:53]} 4... a4 {[%clk 0:02:54]} 5. bxa4 {[%clk 0:02:41.3]} 5...
Rxa4 {[%clk 0:02:54.9]} 6. d4 {[%clk 0:02:41.2]} 6... Be7 {[%clk 0:02:50.9]} 7.
Bd3 {[%clk 0:02:36.3]} 7... c5 {[%clk 0:02:49.1]} 8. O-O {[%clk 0:02:35.1]} 8...
c4 {[%clk 0:02:46.5]} 9. Be2 {[%clk 0:02:33.1]} 9... d5 {[%clk 0:02:45.2]} 10.
Ne5 {[%clk 0:02:32.2]} 10... Nbd7 {[%clk 0:02:43.8]} 11. Bf3 {[%clk 0:02:26.8]}
11... Nxe5 {[%clk 0:02:41.9]} 12. dxe5 {[%clk 0:02:27.7]} 12... Nd7 {[%clk
0:02:42.1]} 13. e4 {[%clk 0:02:27.3]} 13... Qc7 {[%clk 0:02:31.6]} 14. exd5
{[%clk 0:02:12.8]} 14... Nxe5 {[%clk 0:02:31.6]} 15. Nc3 {[%clk 0:02:06.6]}
15... Ra8 {[%clk 0:02:28.6]} 16. Nb5 {[%clk 0:01:47.3]} 16... Nxf3+ {[%clk
0:02:22.1]} 17. Qxf3 {[%clk 0:01:46.9]} 17... Qc5 {[%clk 0:02:20.9]} 18. a4
{[%clk 0:01:46.1]} 18... O-O {[%clk 0:02:11.5]} 19. Ba3 {[%clk 0:01:43.4]} 19...
Qxd5 {[%clk 0:02:04.8]} 20. Qxd5 {[%clk 0:01:40.6]} 20... exd5 {[%clk
0:02:05.7]} 21. Bxe7 {[%clk 0:01:40.9]} 21... Re8 {[%clk 0:02:06.1]} 22. Nc7
{[%clk 0:01:41.4]} 22... Rxe7 {[%clk 0:02:06.2]} 23. Nxa8 {[%clk 0:01:41.9]}
23... Bf5 {[%clk 0:02:04.7]} 24. Nb6 {[%clk 0:01:40.8]} 24... Re5 {[%clk
0:02:00.4]} 25. a5 {[%clk 0:01:38.5]} 25... Bxc2 {[%clk 0:01:58.9]} 26. Rfe1
{[%clk 0:01:39]} 26... Rxe1+ {[%clk 0:01:41.7]} 27. Rxe1 {[%clk 0:01:39.9]}
27... f6 {[%clk 0:01:38.7]} 28. Nxd5 {[%clk 0:01:38.5]} 28... Bd3 {[%clk
0:01:38.7]} 29. Re7 {[%clk 0:01:36.6]} 29... Kf8 {[%clk 0:01:37.8]} 30. Rxb7
{[%clk 0:01:31.1]} 30... Be4 {[%clk 0:01:37.5]} 31. Rb8+ {[%clk 0:01:31.5]}
31... Kf7 {[%clk 0:01:37.3]} 32. Nc3 {[%clk 0:01:32.4]} 1-0

[Event "Early-Titled-Tuesday-Blitz-June-18-2024"]
[Site "Chess.com"]
[Date "2024.06.18"]
[Round "9"]
[White "only_strong_moves"]
[Black "falzehope0"]
[Result "0-1"]
[WhiteElo "2628"]
[BlackElo "2455"]
[TimeControl "180+1"]
[EndTime "9:44:08 PDT"]
[Termination "falzehope0 won by resignation"]

1. Nc3 {[%clk 0:02:46.6]} 1... d6 {[%clk 0:02:55.7]} 2. d4 {[%clk 0:02:46.6]}
2... Nf6 {[%clk 0:02:56]} 3. e4 {[%clk 0:02:47.1]} 3... Nbd7 {[%clk 0:02:56]} 4.
Bg5 {[%clk 0:02:47.5]} 4... e5 {[%clk 0:02:56.2]} 5. Nf3 {[%clk 0:02:47.7]} 5...
Be7 {[%clk 0:02:56.6]} 6. Bc4 {[%clk 0:02:47.3]} 6... O-O {[%clk 0:02:57]} 7.
O-O {[%clk 0:02:46.9]} 7... c6 {[%clk 0:02:57.4]} 8. dxe5 {[%clk 0:02:47.1]}
8... dxe5 {[%clk 0:02:56.9]} 9. Qe2 {[%clk 0:02:47.7]} 9... Qc7 {[%clk 0:02:55]}
10. Nh4 {[%clk 0:02:45.2]} 10... b5 {[%clk 0:02:53.8]} 11. Bd3 {[%clk
0:02:45.5]} 11... Nc5 {[%clk 0:02:53.2]} 12. Nf5 {[%clk 0:02:44.1]} 12... Bxf5
{[%clk 0:02:36.8]} 13. exf5 {[%clk 0:02:45]} 13... e4 {[%clk 0:02:34.5]} 14.
Bxf6 {[%clk 0:02:35.3]} 14... Bxf6 {[%clk 0:02:27.7]} 15. Nxe4 {[%clk
0:02:33.7]} 15... Nxe4 {[%clk 0:02:26.9]} 16. Qxe4 {[%clk 0:02:34.6]} 16... Bxb2
{[%clk 0:02:17.8]} 17. Rab1 {[%clk 0:02:32.7]} 17... Bf6 {[%clk 0:02:15.1]} 18.
a4 {[%clk 0:02:30.6]} 18... a6 {[%clk 0:02:10.6]} 19. axb5 {[%clk 0:02:30.2]}
19... cxb5 {[%clk 0:02:09.3]} 20. Qf3 {[%clk 0:02:25.6]} 20... Rab8 {[%clk
0:02:03.2]} 21. Rb4 {[%clk 0:02:23.1]} 21... Qc5 {[%clk 0:02:01.4]} 22. Rg4
{[%clk 0:02:22.9]} 22... a5 {[%clk 0:01:52.1]} 23. Qf4 {[%clk 0:02:13.7]} 23...
Kh8 {[%clk 0:01:46.7]} 24. h4 {[%clk 0:02:09]} 24... a4 {[%clk 0:01:44.1]} 25.
h5 {[%clk 0:02:07.7]} 25... h6 {[%clk 0:01:44]} 26. Bc4 {[%clk 0:01:04.5]} 26...
bxc4 {[%clk 0:01:34.1]} 0-1

[Event "Early-Titled-Tuesday-Blitz-June-18-2024"]
[Site "Chess.com"]
[Date "2024.06.18"]
[Round "9"]
[White "KnightDuta"]
[Black "GatoRojo150"]
[Result "1-0"]
[WhiteElo "2736"]
[BlackElo "2622"]
[TimeControl "180+1"]
[EndTime "9:44:26 PDT"]
[Termination "KnightDuta won on time"]

1. d4 {[%clk 0:03:00.9]} 1... d5 {[%clk 0:02:59.6]} 2. Bf4 {[%clk 0:03:01.1]}
2... c5 {[%clk 0:02:59.1]} 3. e3 {[%clk 0:03:01.3]} 3... Nc6 {[%clk 0:02:59.1]}
4. Nf3 {[%clk 0:03:01.5]} 4... Nf6 {[%clk 0:02:58.2]} 5. Nbd2 {[%clk 0:03:01.7]}
5... Qb6 {[%clk 0:02:57.3]} 6. dxc5 {[%clk 0:03:01.6]} 6... Qxb2 {[%clk
0:02:57]} 7. Rb1 {[%clk 0:03:01.7]} 7... Qc3 {[%clk 0:02:57.1]} 8. Bb5 {[%clk
0:03:02.3]} 8... g6 {[%clk 0:02:55.5]} 9. e4 {[%clk 0:02:51.1]} 9... dxe4 {[%clk
0:02:45.1]} 10. Be5 {[%clk 0:02:50.6]} 10... Qa5 {[%clk 0:02:42.5]} 11. Bxf6
{[%clk 0:02:48.5]} 11... exf6 {[%clk 0:02:32.6]} 12. O-O {[%clk 0:02:48.8]}
12... exf3 {[%clk 0:02:25.9]} 13. Qxf3 {[%clk 0:02:49.7]} 13... Qc7 {[%clk
0:00:40.7]} 14. Qxf6 {[%clk 0:02:48.3]} 14... Rg8 {[%clk 0:00:39.6]} 15. Rfe1+
{[%clk 0:02:48.2]} 15... Be7 {[%clk 0:00:27.3]} 16. Bxc6+ {[%clk 0:02:42.9]}
16... bxc6 {[%clk 0:00:25.7]} 17. Rxe7+ {[%clk 0:02:43.5]} 17... Qxe7 {[%clk
0:00:25.3]} 18. Qxc6+ {[%clk 0:02:44.1]} 18... Kf8 {[%clk 0:00:23.2]} 19. Qxa8
{[%clk 0:02:45]} 19... Kg7 {[%clk 0:00:21.3]} 20. Nb3 {[%clk 0:02:31.1]} 20...
Bb7 {[%clk 0:00:15.1]} 21. Qxa7 {[%clk 0:02:31.1]} 21... Qe4 {[%clk 0:00:13.3]}
22. c6 {[%clk 0:02:20.8]} 22... Bxc6 {[%clk 0:00:11.8]} 23. Qd4+ {[%clk
0:02:20.5]} 23... f6 {[%clk 0:00:05.5]} 24. Qxe4 {[%clk 0:02:19.8]} 24... Bxe4
{[%clk 0:00:06.4]} 25. Nd4 {[%clk 0:02:18.9]} 25... Ra8 {[%clk 0:00:05.3]} 26.
Ra1 {[%clk 0:02:16.7]} 26... Ra3 {[%clk 0:00:03.4]} 27. f3 {[%clk 0:02:15.9]}
27... Bd5 {[%clk 0:00:03.6]} 28. Nb3 {[%clk 0:02:15.2]} 28... Bc4 {[%clk
0:00:01.3]} 29. Kf2 {[%clk 0:02:15.5]} 29... Kf7 {[%clk 0:00:01]} 30. Ke3 {[%clk
0:02:15.9]} 1-0

[Event "Early-Titled-Tuesday-Blitz-June-18-2024"]
[Site "Chess.com"]
[Date "2024.06.18"]
[Round "9"]
[White "romulocardoso"]
[Black "CFalcons8"]
[Result "0-1"]
[WhiteElo "2325"]
[BlackElo "2450"]
[TimeControl "180+1"]
[EndTime "9:44:26 PDT"]
[Termination "CFalcons8 won by resignation"]

1. e4 {[%clk 0:03:00.9]} 1... e5 {[%clk 0:02:59.3]} 2. Nf3 {[%clk 0:03:00.9]}
2... Nc6 {[%clk 0:02:59.6]} 3. d4 {[%clk 0:03:00.9]} 3... exd4 {[%clk
0:03:00.5]} 4. Bc4 {[%clk 0:03:00.4]} 4... Nf6 {[%clk 0:03:00.7]} 5. e5 {[%clk
0:03:00.5]} 5... d5 {[%clk 0:03:00.5]} 6. Bb5 {[%clk 0:03:00.5]} 6... Ne4 {[%clk
0:02:59.5]} 7. Nxd4 {[%clk 0:03:00.6]} 7... Bd7 {[%clk 0:02:58.3]} 8. Bxc6
{[%clk 0:03:00.8]} 8... bxc6 {[%clk 0:02:59.2]} 9. O-O {[%clk 0:03:01]} 9... Bc5
{[%clk 0:02:58.9]} 10. f3 {[%clk 0:02:58.3]} 10... Ng5 {[%clk 0:02:55.3]} 11. f4
{[%clk 0:02:58.5]} 11... Ne4 {[%clk 0:02:55]} 12. Be3 {[%clk 0:02:58.3]} 12...
O-O {[%clk 0:02:50.9]} 13. Nd2 {[%clk 0:02:58.4]} 13... Nxd2 {[%clk 0:02:50.1]}
14. Qxd2 {[%clk 0:02:59.3]} 14... Qb8 {[%clk 0:02:50.5]} 15. Nb3 {[%clk
0:02:59]} 15... Bxe3+ {[%clk 0:02:43.7]} 16. Qxe3 {[%clk 0:02:59.9]} 16... Qb6
{[%clk 0:02:44]} 17. Qc5 {[%clk 0:02:57.3]} 17... Bf5 {[%clk 0:02:43.1]} 18. Rf2
{[%clk 0:02:53.2]} 18... a5 {[%clk 0:02:38.8]} 19. Qxb6 {[%clk 0:02:46]} 19...
cxb6 {[%clk 0:02:39.7]} 20. Nd4 {[%clk 0:02:46.8]} 20... Bd7 {[%clk 0:02:39]}
21. f5 {[%clk 0:02:42.9]} 21... c5 {[%clk 0:02:39]} 22. e6 {[%clk 0:02:43.3]}
22... fxe6 {[%clk 0:02:30.3]} 23. fxe6 {[%clk 0:02:44.2]} 23... Rxf2 {[%clk
0:02:29.7]} 24. Kxf2 {[%clk 0:02:45.1]} 24... Rf8+ {[%clk 0:02:23.3]} 25. Kg1
{[%clk 0:02:21.7]} 25... Bc8 {[%clk 0:02:16.7]} 26. Nc6 {[%clk 0:02:21.7]} 26...
Bxe6 {[%clk 0:02:11.7]} 27. Re1 {[%clk 0:02:21.9]} 27... Re8 {[%clk 0:02:09.1]}
28. Nd8 {[%clk 0:01:35.6]} 28... Bf7 {[%clk 0:02:06]} 29. Rxe8+ {[%clk
0:01:33.2]} 29... Bxe8 {[%clk 0:02:06.9]} 30. Ne6 {[%clk 0:01:33.1]} 30... Bd7
{[%clk 0:01:59]} 31. Nc7 {[%clk 0:01:32.8]} 31... Bc6 {[%clk 0:01:58.6]} 32. Ne6
{[%clk 0:01:29.8]} 32... d4 {[%clk 0:01:58]} 33. c3 {[%clk 0:01:27.9]} 33...
dxc3 {[%clk 0:01:58.9]} 34. bxc3 {[%clk 0:01:28.5]} 34... Bd5 {[%clk 0:01:58.7]}
35. Nc7 {[%clk 0:01:17.9]} 35... Bxa2 {[%clk 0:01:58.3]} 36. Kf2 {[%clk
0:01:18.6]} 36... Bc4 {[%clk 0:01:56.5]} 37. Ke3 {[%clk 0:01:12.4]} 37... Kf7
{[%clk 0:01:55.8]} 38. Kd2 {[%clk 0:01:05.8]} 38... Ke7 {[%clk 0:01:55.3]} 39.
Na8 {[%clk 0:01:06.4]} 39... b5 {[%clk 0:01:55.1]} 40. Nc7 {[%clk 0:01:03.2]}
40... Kd7 {[%clk 0:01:53.5]} 41. Na6 {[%clk 0:01:03]} 41... Kd6 {[%clk
0:01:49.6]} 42. Nb8 {[%clk 0:00:59.6]} 42... b4 {[%clk 0:01:49.3]} 0-1

[Event "Early-Titled-Tuesday-Blitz-June-18-2024"]
[Site "Chess.com"]
[Date "2024.06.18"]
[Round "9"]
[White "Timerkhanov"]
[Black "Crazy_girl99"]
[Result "1-0"]
[WhiteElo "2720"]
[BlackElo "2609"]
[TimeControl "180+1"]
[EndTime "9:44:34 PDT"]
[Termination "Timerkhanov won by resignation"]

1. d4 {[%clk 0:03:00.9]} 1... Nf6 {[%clk 0:02:56.6]} 2. Bg5 {[%clk 0:02:59]}
2... d5 {[%clk 0:02:56.2]} 3. Nd2 {[%clk 0:02:57.8]} 3... c6 {[%clk 0:02:52.5]}
4. Bxf6 {[%clk 0:02:57.1]} 4... exf6 {[%clk 0:02:52.6]} 5. e3 {[%clk 0:02:57.6]}
5... Bf5 {[%clk 0:02:51.7]} 6. c4 {[%clk 0:02:56.8]} 6... dxc4 {[%clk
0:02:48.6]} 7. Bxc4 {[%clk 0:02:55.9]} 7... Bb4 {[%clk 0:02:48.8]} 8. Bxf7+
{[%clk 0:02:51]} 8... Kxf7 {[%clk 0:02:41]} 9. Qb3+ {[%clk 0:02:50.3]} 9... Be6
{[%clk 0:02:40.7]} 10. Qxb4 {[%clk 0:02:49.9]} 10... Nd7 {[%clk 0:02:40.9]} 11.
Ne2 {[%clk 0:02:48.2]} 11... Rc8 {[%clk 0:02:35.3]} 12. Nf4 {[%clk 0:02:47.9]}
12... Nb6 {[%clk 0:02:29.7]} 13. Nxe6 {[%clk 0:02:45.2]} 13... Kxe6 {[%clk
0:02:29.7]} 14. O-O {[%clk 0:02:46.1]} 14... Kf7 {[%clk 0:02:29.4]} 15. Nb3
{[%clk 0:02:45.7]} 15... Re8 {[%clk 0:02:28.4]} 16. Nc5 {[%clk 0:02:44.6]} 16...
Re7 {[%clk 0:02:27.8]} 17. Qb3+ {[%clk 0:02:43.8]} 17... Qd5 {[%clk 0:02:27.6]}
18. Qxd5+ {[%clk 0:02:40.8]} 18... Nxd5 {[%clk 0:02:27.7]} 19. a3 {[%clk
0:02:39.1]} 19... a5 {[%clk 0:02:24.1]} 20. g3 {[%clk 0:02:30.5]} 20... Rce8
{[%clk 0:02:12.9]} 21. Rab1 {[%clk 0:02:28]} 21... h5 {[%clk 0:02:11]} 22. b4
{[%clk 0:02:25.3]} 22... axb4 {[%clk 0:02:10.5]} 23. axb4 {[%clk 0:02:26.2]}
23... Ra8 {[%clk 0:02:10.1]} 24. b5 {[%clk 0:02:24.6]} 24... b6 {[%clk
0:02:07.7]} 25. Nd3 {[%clk 0:02:22.7]} 25... Nc3 {[%clk 0:02:07.6]} 26. Rb3
{[%clk 0:01:58.5]} 26... Nxb5 {[%clk 0:02:06.8]} 27. Rc1 {[%clk 0:01:57.8]}
27... Re6 {[%clk 0:02:06.7]} 28. d5 {[%clk 0:01:55.5]} 28... Rd6 {[%clk
0:01:57.5]} 29. dxc6 {[%clk 0:01:48.6]} 29... Nc7 {[%clk 0:01:56.5]} 30. Nf4
{[%clk 0:01:43.2]} 30... b5 {[%clk 0:01:56.2]} 31. Ne2 {[%clk 0:01:34.9]} 31...
Ke6 {[%clk 0:01:21.3]} 32. Nd4+ {[%clk 0:01:33.2]} 32... Rxd4 {[%clk 0:01:16.6]}
33. exd4 {[%clk 0:01:32.6]} 33... Ra4 {[%clk 0:01:17]} 34. Rd3 {[%clk
0:01:18.3]} 34... Kd5 {[%clk 0:01:14.9]} 35. Rc5+ {[%clk 0:01:16.4]} 35... Ke4
{[%clk 0:01:12.8]} 36. Rd1 {[%clk 0:01:13.6]} 36... Rxd4 {[%clk 0:01:09.8]} 37.
f3+ {[%clk 0:01:13.2]} 37... Ke3 {[%clk 0:01:07.6]} 38. Rc3+ {[%clk 0:01:12.8]}
1-0

[Event "Early-Titled-Tuesday-Blitz-June-18-2024"]
[Site "Chess.com"]
[Date "2024.06.18"]
[Round "9"]
[White "PeshkaCh"]
[Black "Nicolik"]
[Result "1-0"]
[WhiteElo "2852"]
[BlackElo "2642"]
[TimeControl "180+1"]
[EndTime "9:44:36 PDT"]
[Termination "PeshkaCh won by resignation"]

1. Nf3 {[%clk 0:03:00.9]} 1... d5 {[%clk 0:02:58.5]} 2. d4 {[%clk 0:03:00]} 2...
Nf6 {[%clk 0:02:55.2]} 3. c4 {[%clk 0:02:58.7]} 3... e6 {[%clk 0:02:55.3]} 4.
Nc3 {[%clk 0:02:58.9]} 4... Bb4 {[%clk 0:02:55.9]} 5. Bg5 {[%clk 0:02:58.8]}
5... h6 {[%clk 0:02:55.4]} 6. Bxf6 {[%clk 0:02:59.2]} 6... Qxf6 {[%clk
0:02:56.1]} 7. Qa4+ {[%clk 0:02:59.7]} 7... Nc6 {[%clk 0:02:56.7]} 8. cxd5
{[%clk 0:03:00.3]} 8... exd5 {[%clk 0:02:55.9]} 9. e3 {[%clk 0:03:00.8]} 9...
Be6 {[%clk 0:02:52.7]} 10. Be2 {[%clk 0:03:00.8]} 10... O-O {[%clk 0:02:52.2]}
11. O-O {[%clk 0:03:01.4]} 11... a6 {[%clk 0:02:38.8]} 12. a3 {[%clk 0:03:00.9]}
12... Bd6 {[%clk 0:02:37.9]} 13. Qc2 {[%clk 0:03:01]} 13... Rfe8 {[%clk
0:02:32.9]} 14. Rfe1 {[%clk 0:02:54.8]} 14... Ne7 {[%clk 0:02:27.5]} 15. e4
{[%clk 0:02:54.6]} 15... dxe4 {[%clk 0:02:27.7]} 16. Nxe4 {[%clk 0:02:55.5]}
16... Qf5 {[%clk 0:02:09.7]} 17. Bd3 {[%clk 0:02:54.4]} 17... Qa5 {[%clk
0:02:05.7]} 18. b4 {[%clk 0:02:53.1]} 18... Qb6 {[%clk 0:02:04.8]} 19. Nc5
{[%clk 0:02:49.8]} 19... Bg4 {[%clk 0:01:56.4]} 20. Ne5 {[%clk 0:02:49.5]} 20...
Bxe5 {[%clk 0:01:54]} 21. dxe5 {[%clk 0:02:41.9]} 21... Rad8 {[%clk 0:01:50.1]}
22. h3 {[%clk 0:02:35.9]} 22... Bc8 {[%clk 0:01:47.9]} 23. Bc4 {[%clk
0:02:24.5]} 23... Nf5 {[%clk 0:01:35.2]} 24. e6 {[%clk 0:02:21]} 24... Nd6
{[%clk 0:01:23.6]} 25. e7 {[%clk 0:02:03.9]} 25... Rd7 {[%clk 0:01:23.7]} 26.
Nxd7 {[%clk 0:02:01.7]} 26... Bxd7 {[%clk 0:01:24.6]} 27. Rad1 {[%clk
0:01:56.8]} 27... Bc6 {[%clk 0:01:21.6]} 28. Rxd6 {[%clk 0:01:41.3]} 28... cxd6
{[%clk 0:01:22]} 29. Qg6 {[%clk 0:01:40.9]} 29... d5 {[%clk 0:01:22.4]} 30. Bxd5
{[%clk 0:01:41.2]} 30... Kh8 {[%clk 0:00:40.6]} 31. Bxf7 {[%clk 0:01:34]} 1-0

[Event "Early-Titled-Tuesday-Blitz-June-18-2024"]
[Site "Chess.com"]
[Date "2024.06.18"]
[Round "9"]
[White "chess_peak"]
[Black "AndrewMaco"]
[Result "0-1"]
[WhiteElo "2538"]
[BlackElo "2703"]
[TimeControl "180+1"]
[EndTime "9:44:36 PDT"]
[Termination "AndrewMaco won by resignation"]

1. d4 {[%clk 0:03:00.9]} 1... Nf6 {[%clk 0:02:59.1]} 2. c4 {[%clk 0:03:00.9]}
2... g6 {[%clk 0:02:50.9]} 3. Nc3 {[%clk 0:03:00.6]} 3... Bg7 {[%clk 0:02:50]}
4. e4 {[%clk 0:03:00.2]} 4... d6 {[%clk 0:02:50.7]} 5. Be2 {[%clk 0:03:00]} 5...
O-O {[%clk 0:02:50.5]} 6. Be3 {[%clk 0:03:00.5]} 6... e5 {[%clk 0:02:51]} 7. d5
{[%clk 0:02:59.9]} 7... Na6 {[%clk 0:02:51.6]} 8. h4 {[%clk 0:02:59.8]} 8... Nc5
{[%clk 0:02:51.6]} 9. f3 {[%clk 0:02:58.8]} 9... Nh5 {[%clk 0:02:43.1]} 10. g4
{[%clk 0:02:03]} 10... Nf4 {[%clk 0:02:29.9]} 11. Rh2 {[%clk 0:02:03.1]} 11...
a5 {[%clk 0:02:24.7]} 12. Qd2 {[%clk 0:01:35.9]} 12... f5 {[%clk 0:02:00.7]} 13.
gxf5 {[%clk 0:01:31.8]} 13... gxf5 {[%clk 0:02:01.6]} 14. O-O-O {[%clk 0:01:28]}
14... a4 {[%clk 0:01:55.8]} 15. Kb1 {[%clk 0:01:16.4]} 15... Kh8 {[%clk
0:01:47.4]} 16. h5 {[%clk 0:01:04.5]} 16... Qf6 {[%clk 0:01:39.2]} 17. Nh3
{[%clk 0:01:01.9]} 17... Nxh3 {[%clk 0:01:37.1]} 18. Rxh3 {[%clk 0:00:26.3]}
18... f4 {[%clk 0:01:36.1]} 19. Bxc5 {[%clk 0:00:20.9]} 19... Bxh3 {[%clk
0:01:36.1]} 20. Bf2 {[%clk 0:00:20.4]} 20... Bd7 {[%clk 0:01:35.1]} 21. Rg1
{[%clk 0:00:19.1]} 21... Bh6 {[%clk 0:01:34.3]} 22. Qe1 {[%clk 0:00:18.8]} 22...
Rg8 {[%clk 0:01:33.8]} 23. Bh4 {[%clk 0:00:18.6]} 23... Rxg1 {[%clk 0:01:33.3]}
24. Qxg1 {[%clk 0:00:19.5]} 24... Qxh4 {[%clk 0:01:32.4]} 0-1

[Event "Early-Titled-Tuesday-Blitz-June-18-2024"]
[Site "Chess.com"]
[Date "2024.06.18"]
[Round "9"]
[White "campochess"]
[Black "dianamirza"]
[Result "1-0"]
[WhiteElo "2198"]
[BlackElo "1785"]
[TimeControl "180+1"]
[EndTime "9:44:44 PDT"]
[Termination "campochess won by resignation"]

1. e4 {[%clk 0:02:32.6]} 1... d5 {[%clk 0:02:24.4]} 2. Nc3 {[%clk 0:02:31.1]}
2... dxe4 {[%clk 0:02:24]} 3. Nxe4 {[%clk 0:02:30.8]} 3... Nf6 {[%clk
0:02:24.7]} 4. Ng3 {[%clk 0:02:30.6]} 4... Bg4 {[%clk 0:02:14.8]} 5. Nf3 {[%clk
0:02:26.3]} 5... Bxf3 {[%clk 0:02:13.7]} 6. Qxf3 {[%clk 0:02:25]} 6... c6 {[%clk
0:02:14.6]} 7. c3 {[%clk 0:02:18.3]} 7... e6 {[%clk 0:02:15]} 8. d4 {[%clk
0:02:18]} 8... Be7 {[%clk 0:02:13.5]} 9. Bd3 {[%clk 0:02:17.8]} 9... Nbd7 {[%clk
0:02:05.1]} 10. O-O {[%clk 0:02:17.1]} 10... O-O {[%clk 0:02:04.8]} 11. Re1
{[%clk 0:02:17.1]} 11... Nb6 {[%clk 0:02:04.3]} 12. a4 {[%clk 0:02:15.6]} 12...
Nbd5 {[%clk 0:02:03.3]} 13. a5 {[%clk 0:02:06.4]} 13... Qc7 {[%clk 0:01:53.9]}
14. Bd2 {[%clk 0:01:59.3]} 14... b6 {[%clk 0:01:36.9]} 15. a6 {[%clk 0:01:53.1]}
15... c5 {[%clk 0:01:33.2]} 16. c4 {[%clk 0:01:50.3]} 16... Nb4 {[%clk
0:01:27.8]} 17. Bxb4 {[%clk 0:01:50.2]} 17... cxb4 {[%clk 0:01:28.7]} 18. b3
{[%clk 0:01:49.7]} 18... Rfd8 {[%clk 0:01:27.8]} 19. Rad1 {[%clk 0:01:43.4]}
19... g6 {[%clk 0:01:12.2]} 20. Bc2 {[%clk 0:01:34.8]} 20... Rac8 {[%clk
0:00:53.2]} 21. h4 {[%clk 0:01:32.7]} 21... Qc6 {[%clk 0:00:41]} 22. d5 {[%clk
0:01:27.3]} 22... exd5 {[%clk 0:00:32.9]} 23. Rxe7 {[%clk 0:01:26.4]} 23... dxc4
{[%clk 0:00:22.8]} 24. Rxd8+ {[%clk 0:01:24.9]} 24... Ne8 {[%clk 0:00:18.9]} 25.
Qxc6 {[%clk 0:01:23.3]} 1-0

[Event "Early-Titled-Tuesday-Blitz-June-18-2024"]
[Site "Chess.com"]
[Date "2024.06.18"]
[Round "9"]
[White "luckyswitchback"]
[Black "MagnusCarlsen"]
[Result "0-1"]
[WhiteElo "2854"]
[BlackElo "3177"]
[TimeControl "180+1"]
[EndTime "9:44:50 PDT"]
[Termination "MagnusCarlsen won by resignation"]

1. e4 {[%clk 0:03:00.9]} 1... c5 {[%clk 0:02:55.5]} 2. Nf3 {[%clk 0:03:00.2]}
2... e6 {[%clk 0:02:55.9]} 3. c3 {[%clk 0:02:59.5]} 3... d5 {[%clk 0:02:55.4]}
4. e5 {[%clk 0:02:57]} 4... Nc6 {[%clk 0:02:55.5]} 5. d4 {[%clk 0:02:56.7]} 5...
Bd7 {[%clk 0:02:56.2]} 6. Be2 {[%clk 0:02:53.7]} 6... cxd4 {[%clk 0:02:56.2]} 7.
cxd4 {[%clk 0:02:53.5]} 7... Nge7 {[%clk 0:02:57.1]} 8. Na3 {[%clk 0:02:51.7]}
8... Nf5 {[%clk 0:02:56.5]} 9. Nc2 {[%clk 0:02:51.5]} 9... Be7 {[%clk
0:02:57.2]} 10. O-O {[%clk 0:02:50.7]} 10... O-O {[%clk 0:02:57.8]} 11. Kh1
{[%clk 0:02:49.1]} 11... Rc8 {[%clk 0:02:56.9]} 12. Bd3 {[%clk 0:02:46.6]} 12...
f6 {[%clk 0:02:53.8]} 13. g4 {[%clk 0:02:40.1]} 13... fxe5 {[%clk 0:02:41]} 14.
dxe5 {[%clk 0:02:19.3]} 14... Nh6 {[%clk 0:02:39.5]} 15. Bxh6 {[%clk 0:02:00.1]}
15... gxh6 {[%clk 0:02:39.4]} 16. Qe2 {[%clk 0:02:00]} 16... Rf4 {[%clk
0:02:33.2]} 17. h3 {[%clk 0:01:56]} 17... Qf8 {[%clk 0:02:32.4]} 18. Nfe1 {[%clk
0:01:44.2]} 18... Qf7 {[%clk 0:02:15.1]} 19. f3 {[%clk 0:01:33.1]} 19... Rf8
{[%clk 0:02:14.7]} 20. Rd1 {[%clk 0:01:11.9]} 20... a6 {[%clk 0:02:11.3]} 21.
Kh2 {[%clk 0:01:02.6]} 21... Bd8 {[%clk 0:02:09.7]} 22. Kg2 {[%clk 0:00:23.5]}
22... Bc7 {[%clk 0:02:08.4]} 23. Qe3 {[%clk 0:00:18.8]} 23... Nxe5 {[%clk
0:02:03.6]} 24. Be2 {[%clk 0:00:18.7]} 24... Qf6 {[%clk 0:01:58.1]} 25. Nd4
{[%clk 0:00:17.6]} 25... Ng6 {[%clk 0:01:57.5]} 26. Kg1 {[%clk 0:00:14.8]} 26...
Bb6 {[%clk 0:01:57.1]} 27. Nec2 {[%clk 0:00:14.2]} 27... e5 {[%clk 0:01:55.8]}
28. Qb3 {[%clk 0:00:14.5]} 28... exd4 {[%clk 0:01:55.1]} 29. Bd3 {[%clk
0:00:12.8]} 29... Ne5 {[%clk 0:01:50.8]} 30. Ne1 {[%clk 0:00:10.9]} 30... Kh8
{[%clk 0:01:49.1]} 31. Qxd5 {[%clk 0:00:08.6]} 31... Bc6 {[%clk 0:01:48.1]} 0-1